[Event "IV Elllobregat Open Chess Tmnt"]
[Site "Sant Boi de Llobregat, Spain"]
[Date "2023.12.03"]
[Round "4.13"]
[White "Zwirs, Nico"]
[Black "Lamard, Guillaume"]
[Result "1/2-1/2"]
[TimeControl "90min/40moves + 15min/end + 30sec from move 1"]
[WhiteFideId "1036432"]
[BlackFideId "600261"]
[WhiteElo "2458"]
[BlackElo "2514"]

1. e4 {[%clk 01:30:59]} e5 {[%clk 01:30:47]} {[%emt 00:00:14]} 2. Nf3 {[%clk
01:31:22]} {[%emt 00:00:06]} Nc6 {[%clk 01:31:13]} {[%emt 00:00:04]} 3. Bc4
{[%clk 01:31:42]} {[%emt 00:00:08]} Nf6 {[%clk 01:31:38]} {[%emt 00:00:06]} 4.
d3 {[%clk 01:32:03]} {[%emt 00:00:09]} Bc5 {[%clk 01:32:04]} {[%emt 00:00:05]}
5. O-O {[%clk 01:31:40]} {[%emt 00:00:52]} d6 {[%clk 01:31:41]} {[%emt
00:00:54]} 6. c3 {[%clk 01:31:52]} {[%emt 00:00:17]} a5 {[%clk 01:32:03]}
{[%emt 00:00:09]} 7. Bb3 {[%clk 01:29:50]} {[%emt 00:02:32]} O-O {[%clk
01:31:34]} {[%emt 00:00:59]} 8. h3 {[%emt 00:06:41]} Be6 {[%emt 00:01:47]} 9.
Ba4 {[%emt 00:03:39]} Ba7 {[%clk 01:24:52]} {[%emt 00:00:08]} 10. Re1 {[%emt
00:01:26]} Ne7 {[%emt 00:07:06]} 11. Nbd2 {[%emt 00:04:43]} Ng6 {[%emt
00:04:19]} 12. Nf1 {[%clk 01:11:52]} {[%emt 00:00:07]} Nh5 {[%clk 01:24:31]}
{[%emt 00:00:04]} 13. d4 {[%clk 01:10:13]} {[%emt 00:02:08]} Nhf4 {[%clk
01:24:00]} {[%emt 00:01:01]} 14. Be3 {[%clk 01:08:48]} {[%emt 00:01:54]} Qc8
{[%clk 01:11:38]} {[%emt 00:12:54]} 15. Ng5 {[%clk 00:52:22]} {[%emt 00:16:56]}
Bc4 {[%clk 01:01:00]} {[%emt 00:11:08]} 16. dxe5 {[%clk 00:21:27]} {[%emt
00:31:24]} h6 {[%clk 00:37:39]} {[%emt 00:23:51]} 17. Bxa7 {[%clk 00:20:27]}
{[%emt 00:01:30]} hxg5 {[%clk 00:25:48]} {[%emt 00:12:21]} 18. Be3 {[%clk
00:20:09]} {[%emt 00:00:48]} Nxe5 {[%clk 00:24:13]} {[%emt 00:02:05]} 19. Nd2
{[%clk 00:14:33]} {[%emt 00:06:06]} Be6 {[%clk 00:19:25]} {[%emt 00:05:18]} 20.
Bxf4 {[%clk 00:11:40]} {[%emt 00:03:24]} gxf4 {[%clk 00:19:50]} {[%emt
00:00:05]} 21. Nf3 {[%clk 00:11:49]} {[%emt 00:00:20]} Bxh3 {[%clk 00:10:55]}
{[%emt 00:09:26]} 22. Nxe5 {[%clk 00:12:10]} {[%emt 00:00:09]} dxe5 {[%clk
00:11:21]} {[%emt 00:00:04]} 23. Qh5 {[%clk 00:12:23]} {[%emt 00:00:16]} Bg4
{[%clk 00:11:25]} {[%emt 00:00:26]} 24. Qxe5 {[%clk 00:12:44]} {[%emt
00:00:08]} f3 {[%clk 00:11:46]} {[%emt 00:00:10]} 25. gxf3 {[%clk 00:04:59]}
{[%emt 00:08:15]} Bxf3 {[%clk 00:09:51]} {[%emt 00:02:25]} 26. Qg3 {[%clk
00:04:51]} {[%emt 00:00:37]} Qg4 {[%clk 00:09:07]} {[%emt 00:01:15]} 27. Qxg4
{[%clk 00:04:37]} {[%emt 00:00:44]} Bxg4 {[%clk 00:09:34]} {[%emt 00:00:04]} 28.
Bd1 {[%clk 00:04:19]} {[%emt 00:00:48]} 1/2-1/2

[Event "IV Elllobregat Open Chess Tmnt"]
[Site "Sant Boi de Llobregat, Spain"]
[Date "2023.12.03"]
[Round "4.14"]
[White "Omonov, Asrorjon"]
[Black "Erdogmus, Yagiz Kaan"]
[Result "0-1"]
[TimeControl "90min/40moves + 15min/end + 30sec from move 1"]
[WhiteFideId "14212552"]
[BlackFideId "44599790"]
[WhiteElo "2224"]
[BlackElo "2496"]

1. d4 {[%clk 01:30:44]} {[%emt 00:00:15]} Nf6 {[%clk 01:30:52]} {[%emt
00:00:09]} 2. c4 {[%clk 01:31:08]} {[%emt 00:00:05]} g6 {[%clk 01:31:19]}
{[%emt 00:00:03]} 3. Nc3 {[%clk 01:31:29]} {[%emt 00:00:10]} d5 {[%clk
01:31:44]} {[%emt 00:00:04]} 4. Nf3 {[%clk 01:31:52]} {[%emt 00:00:07]} Bg7
{[%clk 01:32:06]} {[%emt 00:00:09]} 5. Bg5 {[%clk 01:32:17]} {[%emt 00:00:05]}
Ne4 {[%clk 01:32:01]} {[%emt 00:00:34]} 6. cxd5 {[%clk 01:32:24]} {[%emt
00:00:23]} Nxg5 {[%clk 01:32:06]} {[%emt 00:00:26]} 7. Nxg5 {[%clk 01:32:52]}
{[%emt 00:00:02]} e6 {[%clk 01:32:28]} {[%emt 00:00:08]} 8. Qd2 {[%clk
01:33:14]} {[%emt 00:00:07]} exd5 {[%clk 01:31:58]} {[%emt 00:01:01]} 9. Qe3+
{[%clk 01:33:18]} {[%emt 00:00:26]} Kf8 {[%clk 01:32:07]} {[%emt 00:00:21]} 10.
Qf4 {[%clk 01:33:18]} {[%emt 00:00:30]} Bf6 {[%clk 01:30:20]} {[%emt 00:02:17]}
11. h4 {[%clk 01:33:36]} {[%emt 00:00:12]} Kg7 {[%clk 01:23:06]} {[%emt
00:07:43]} 12. e4 {[%clk 01:33:55]} {[%emt 00:00:11]} dxe4 {[%clk 01:05:06]}
{[%emt 00:18:31]} 13. O-O-O {[%clk 01:33:03]} {[%emt 00:01:22]} Qd6 {[%clk
00:59:01]} {[%emt 00:06:35]} 14. Qxd6 {[%emt 00:05:51]} cxd6 {[%clk 00:53:12]}
{[%emt 00:00:57]} 15. Ngxe4 {[%clk 01:33:04]} {[%emt 00:00:31]} Nc6 {[%emt
00:10:21]} 16. Nxf6 {[%clk 01:29:19]} {[%emt 00:00:37]} Kxf6 {[%clk 00:47:26]}
{[%emt 00:00:02]} 17. h5 {[%clk 01:29:24]} {[%emt 00:00:25]} h6 {[%clk
00:41:07]} {[%emt 00:06:50]} 18. hxg6 {[%clk 01:24:32]} {[%emt 00:05:22]} fxg6
{[%clk 00:41:35]} {[%emt 00:00:01]} 19. Bd3 {[%clk 01:22:40]} {[%emt 00:02:23]}
Kg7 {[%clk 00:41:11]} {[%emt 00:00:54]} 20. Rhe1 {[%clk 01:19:08]} {[%emt
00:04:01]} Rf8 {[%clk 00:41:14]} {[%emt 00:00:28]} 21. f3 {[%clk 01:19:18]}
{[%emt 00:00:20]} a6 {[%clk 00:36:08]} {[%emt 00:05:36]} 22. Be4 {[%clk
01:14:09]} {[%emt 00:05:38]} Bf5 {[%clk 00:29:30]} {[%emt 00:07:08]} 23. Bd5
{[%clk 01:06:41]} {[%emt 00:07:58]} h5 {[%clk 00:26:38]} {[%emt 00:03:22]} 24.
Ne4 {[%clk 00:53:24]} {[%emt 00:13:46]} Rac8 {[%clk 00:23:04]} {[%emt
00:04:04]} 25. Kd2 {[%clk 00:37:06]} {[%emt 00:16:49]} Nxd4 {[%clk 00:18:37]}
{[%emt 00:04:56]} 26. Rc1 {[%clk 00:36:19]} {[%emt 00:01:18]} Nc6 {[%clk
00:17:17]} {[%emt 00:01:50]} 27. Ng5 {[%emt 00:09:03]} Rc7 {[%clk 00:10:57]}
{[%emt 00:00:57]} 28. f4 {[%clk 00:27:59]} {[%emt 00:06:11]} Bc8 {[%clk
00:07:45]} {[%emt 00:03:42]} 29. g3 {[%clk 00:24:43]} {[%emt 00:03:45]} Rf5
{[%clk 00:06:02]} {[%emt 00:02:13]} 30. Be6 {[%clk 00:15:33]} {[%emt 00:09:41]}
Rc5 {[%clk 00:05:54]} {[%emt 00:00:39]} 31. Bxc8 {[%clk 00:15:50]} {[%emt
00:00:13]} Rd5+ {[%clk 00:06:23]} 32. Ke3 {[%clk 00:16:14]} {[%emt 00:00:06]}
Rxc8 {[%clk 00:06:44]} {[%emt 00:00:09]} 33. Red1 {[%clk 00:16:41]} {[%emt
00:00:03]} Re8+ {[%clk 00:06:29]} {[%emt 00:00:45]} 34. Kf3 {[%clk 00:14:41]}
{[%emt 00:02:30]} Rd4 {[%clk 00:06:23]} {[%emt 00:00:36]} 35. Kf2 {[%clk
00:11:43]} {[%emt 00:03:27]} Re7 {[%clk 00:06:47]} {[%emt 00:00:07]} 36. Nf3
{[%clk 00:09:49]} {[%emt 00:02:24]} Rxd1 {[%clk 00:06:40]} {[%emt 00:00:37]} 37.
Rxd1 {[%emt 00:00:01]} Rd7 {[%clk 00:07:10]} 38. Ke3 {[%clk 00:09:30]} {[%emt
00:01:17]} Kf6 {[%clk 00:07:20]} {[%emt 00:00:19]} 39. Nd4 {[%clk 00:04:49]}
{[%emt 00:05:11]} Ne7 {[%clk 00:03:15]} {[%emt 00:04:35]} 40. Rc1 {[%clk
00:18:07]} {[%emt 00:02:13]} Nd5+ {[%clk 00:16:52]} {[%emt 00:01:53]} 41. Ke4
{[%clk 00:15:58]} {[%emt 00:02:39]} Rc7 {[%clk 00:14:22]} {[%emt 00:03:00]} 42.
Rg1 {[%clk 00:12:01]} {[%emt 00:04:26]} Nb4 {[%clk 00:13:52]} {[%emt 00:01:00]}
43. g4 {[%clk 00:11:08]} {[%emt 00:01:23]} hxg4 {[%clk 00:13:43]} {[%emt
00:00:39]} 44. Rxg4 {[%clk 00:11:26]} {[%emt 00:00:12]} d5+ {[%clk 00:13:50]}
{[%emt 00:00:23]} 45. Kf3 {[%clk 00:11:46]} {[%emt 00:00:08]} Rc4 {[%clk
00:13:10]} {[%emt 00:01:13]} 46. Ne2 {[%clk 00:10:21]} {[%emt 00:01:53]} Nxa2
{[%clk 00:13:18]} {[%emt 00:00:24]} 47. Rh4 {[%clk 00:09:43]} {[%emt 00:01:07]}
Rb4 {[%clk 00:12:29]} {[%emt 00:01:20]} 48. Rh8 {[%clk 00:09:58]} {[%emt
00:00:14]} Rxb2 {[%clk 00:11:47]} {[%emt 00:01:12]} 49. Rd8 {[%clk 00:10:16]}
{[%emt 00:00:11]} Ke7 {[%clk 00:07:51]} {[%emt 00:04:27]} 50. Rg8 {[%clk
00:10:11]} {[%emt 00:00:35]} Rb6 {[%clk 00:07:40]} {[%emt 00:00:42]} 51. Rg7+
{[%clk 00:09:51]} {[%emt 00:00:49]} Kf8 {[%clk 00:06:52]} {[%emt 00:01:18]} 52.
Rd7 {[%clk 00:10:02]} {[%emt 00:00:16]} Nb4 {[%emt 00:00:33]} 53. Kg4 {[%clk
00:07:53]} {[%emt 00:02:12]} a5 {[%clk 00:06:42]} {[%emt 00:01:08]} 54. Nc3
{[%clk 00:08:04]} {[%emt 00:00:18]} Ke8 {[%clk 00:07:02]} {[%emt 00:00:10]} 55.
Rg7 {[%clk 00:07:39]} {[%emt 00:00:55]} d4 {[%clk 00:07:18]} {[%emt 00:00:14]}
56. Ne4 {[%clk 00:08:02]} {[%emt 00:00:06]} d3 {[%clk 00:07:24]} {[%emt
00:00:25]} 57. Kf3 {[%clk 00:08:26]} {[%emt 00:00:06]} a4 {[%clk 00:07:32]}
{[%emt 00:00:22]} 58. Nc3 {[%clk 00:05:08]} {[%emt 00:03:48]} a3 {[%clk
00:07:44]} {[%emt 00:00:18]} 59. Rg8+ {[%clk 00:04:55]} {[%emt 00:00:43]} Kf7
{[%clk 00:07:26]} {[%emt 00:00:48]} 60. Ra8 {[%clk 00:05:00]} {[%emt 00:00:24]}
Ra6 {[%clk 00:07:39]} {[%emt 00:00:17]} 61. Rb8 {[%clk 00:05:25]} {[%emt
00:00:06]} Ra7 {[%clk 00:07:16]} {[%emt 00:00:53]} 62. Ke3 {[%clk 00:04:47]}
{[%emt 00:01:08]} Nd5+ {[%clk 00:07:17]} {[%emt 00:00:29]} 63. Nxd5 {[%clk
00:05:15]} {[%emt 00:00:02]} a2 {[%clk 00:07:42]} {[%emt 00:00:05]} 0-1

[Event "IV Elllobregat Open Chess Tmnt"]
[Site "Sant Boi de Llobregat, Spain"]
[Date "2023.12.03"]
[Round "4.15"]
[White "Shirov, Alexei"]
[Black "Nazari, Arad"]
[Result "1-0"]
[TimeControl "90min/40moves + 15min/end + 30sec from move 1"]
[WhiteFideId "2209390"]
[BlackFideId "12577324"]
[WhiteElo "2668"]
[BlackElo "2363"]

1. e4 {[%clk 01:29:34]} {[%emt 00:01:25]} e6 {[%clk 01:30:52]} {[%emt
00:00:09]} 2. d4 {[%clk 01:29:58]} {[%emt 00:00:06]} d5 {[%clk 01:31:18]}
{[%emt 00:00:03]} 3. e5 {[%clk 01:30:25]} {[%emt 00:00:04]} c5 {[%clk
01:31:44]} {[%emt 00:00:05]} 4. c3 {[%clk 01:30:52]} {[%emt 00:00:03]} Nc6
{[%clk 01:32:10]} {[%emt 00:00:04]} 5. Nf3 {[%clk 01:31:18]} {[%emt 00:00:03]}
Bd7 {[%clk 01:32:35]} {[%emt 00:00:06]} 6. Be2 {[%clk 01:31:44]} {[%emt
00:00:03]} f6 {[%clk 01:33:00]} {[%emt 00:00:05]} 7. O-O {[%clk 01:25:17]}
{[%emt 00:06:57]} fxe5 {[%clk 01:33:26]} {[%emt 00:00:05]} 8. Nxe5 {[%clk
01:18:54]} {[%emt 00:06:53]} Nxe5 {[%clk 01:33:49]} {[%emt 00:00:07]} 9. dxe5
{[%clk 01:19:19]} {[%emt 00:00:05]} Qc7 {[%clk 01:34:14]} {[%emt 00:00:06]} 10.
c4 {[%clk 01:19:22]} {[%emt 00:00:26]} Qxe5 {[%clk 01:34:39]} {[%emt 00:00:05]}
11. Bh5+ {[%clk 01:17:35]} {[%emt 00:02:16]} g6 {[%clk 01:33:48]} {[%emt
00:01:21]} 12. Bf3 {[%clk 01:18:00]} {[%emt 00:00:04]} O-O-O {[%clk 01:31:53]}
{[%emt 00:02:26]} 13. Re1 {[%clk 01:16:37]} {[%emt 00:01:52]} Qf5 {[%clk
01:31:54]} {[%emt 00:00:30]} 14. Nc3 {[%clk 01:10:33]} {[%emt 00:06:35]} dxc4
{[%clk 01:21:09]} {[%emt 00:11:16]} 15. Qe2 {[%clk 01:06:56]} {[%emt 00:04:06]}
Nf6 {[%clk 00:39:18]} {[%emt 00:42:22]} 16. Qxc4 {[%clk 01:04:49]} {[%emt
00:02:36]} Nd5 {[%clk 00:39:38]} {[%emt 00:00:09]} 17. Bg4 {[%clk 00:56:20]}
{[%emt 00:08:59]} Qf6 {[%clk 00:33:08]} {[%emt 00:07:01]} 18. Ne4 {[%clk
00:54:57]} {[%emt 00:01:53]} Qd4 {[%clk 00:31:25]} {[%emt 00:02:13]} 19. Qxd4
{[%clk 00:40:00]} {[%emt 00:15:27]} cxd4 {[%clk 00:31:49]} {[%emt 00:00:06]} 20.
Bg5 {[%clk 00:40:25]} {[%emt 00:00:03]} Re8 {[%clk 00:27:22]} {[%emt 00:04:59]}
21. Nf6 {[%clk 00:40:27]} {[%emt 00:00:28]} Nxf6 {[%clk 00:27:00]} {[%emt
00:00:53]} 22. Bxf6 {[%clk 00:40:50]} {[%emt 00:00:06]} Rg8 {[%clk 00:27:15]}
{[%emt 00:00:14]} 23. Rac1+ {[%clk 00:30:46]} {[%emt 00:10:34]} Kb8 {[%clk
00:27:40]} {[%emt 00:00:06]} 24. Be5+ {[%clk 00:31:12]} {[%emt 00:00:04]} Ka8
{[%clk 00:28:06]} {[%emt 00:00:03]} 25. Rc7 {[%clk 00:31:37]} {[%emt 00:00:05]}
Bc6 {[%clk 00:26:56]} {[%emt 00:01:41]} 26. Rc1 {[%clk 00:29:29]} {[%emt
00:02:38]} Rd8 {[%clk 00:18:38]} {[%emt 00:08:48]} 27. R1xc6 {[%clk 00:26:15]}
{[%emt 00:03:43]} bxc6 {[%clk 00:19:05]} {[%emt 00:00:04]} 28. Bf3 {[%clk
00:26:39]} {[%emt 00:00:05]} Rd5 {[%clk 00:19:32]} {[%emt 00:00:04]} 29. Rc8+
{[%clk 00:27:03]} {[%emt 00:00:06]} Kb7 {[%clk 00:19:54]} {[%emt 00:00:08]} 30.
Rb8+ {[%clk 00:27:29]} {[%emt 00:00:04]} Ka6 {[%clk 00:20:18]} {[%emt
00:00:06]} 31. Bxd5 {[%clk 00:27:54]} {[%emt 00:00:05]} exd5 {[%clk 00:20:00]}
{[%emt 00:00:48]} 32. Bxd4 {[%clk 00:25:28]} {[%emt 00:02:56]} Bc5 {[%clk
00:20:20]} {[%emt 00:00:11]} 33. Rxg8 {[%clk 00:25:52]} {[%emt 00:00:06]} Bxd4
{[%clk 00:20:48]} {[%emt 00:00:03]} 34. b3 {[%clk 00:16:19]} {[%emt 00:10:02]}
Kb5 {[%clk 00:21:00]} {[%emt 00:00:18]} 35. Rb8+ {[%clk 00:16:09]} {[%emt
00:00:40]} Bb6 {[%clk 00:21:08]} {[%emt 00:00:22]} 36. Kf1 {[%clk 00:16:24]}
{[%emt 00:00:14]} Kb4 {[%clk 00:21:05]} {[%emt 00:00:33]} 37. f4 {[%clk
00:15:48]} {[%emt 00:01:06]} Kc3 {[%clk 00:19:38]} {[%emt 00:01:58]} 38. Ke2
{[%clk 00:13:38]} {[%emt 00:02:39]} Kc2 {[%clk 00:19:59]} {[%emt 00:00:11]} 39.
Rb7 {[%clk 00:13:18]} {[%emt 00:00:50]} d4 {[%clk 00:19:27]} {[%emt 00:01:02]}
40. Rd7 {[%clk 00:28:40]} {[%emt 00:00:07]} h5 {[%clk 00:34:43]} {[%emt
00:00:16]} 41. b4 {[%clk 00:28:37]} {[%emt 00:00:32]} Kc3 {[%clk 00:31:45]}
{[%emt 00:03:27]} 42. Rd6 {[%emt 00:00:46]} 1-0

[Event "IV Elllobregat Open Chess Tmnt"]
[Site "Sant Boi de Llobregat, Spain"]
[Date "2023.12.03"]
[Round "4.16"]
[White "Vallejo Pons, Francisco"]
[Black "Stribuk, Artiom"]
[Result "1-0"]
[TimeControl "90min/40moves + 15min/end + 30sec from move 1"]
[WhiteFideId "2205530"]
[BlackFideId "13515659"]
[WhiteElo "2668"]
[BlackElo "2420"]

1. e4 {[%clk 01:29:25]} {[%emt 00:01:33]} c5 {[%clk 01:30:53]} {[%emt
00:00:08]} 2. Nf3 {[%clk 01:29:49]} {[%emt 00:00:06]} d6 {[%clk 01:31:17]}
{[%emt 00:00:06]} 3. d4 {[%clk 01:30:13]} {[%emt 00:00:06]} cxd4 {[%clk
01:31:43]} {[%emt 00:00:04]} 4. Nxd4 {[%clk 01:30:37]} {[%emt 00:00:06]} Nf6
{[%clk 01:32:08]} {[%emt 00:00:04]} 5. Nc3 {[%clk 01:31:04]} {[%emt 00:00:04]}
Nc6 {[%clk 01:32:31]} {[%emt 00:00:07]} 6. Bc4 {[%clk 01:31:29]} {[%emt
00:00:05]} Qb6 {[%clk 01:32:54]} {[%emt 00:00:07]} 7. Nb3 {[%clk 01:31:53]}
{[%emt 00:00:07]} e6 {[%clk 01:33:17]} {[%emt 00:00:07]} 8. Bf4 {[%clk
01:32:11]} {[%emt 00:00:12]} Ne5 {[%clk 01:32:54]} {[%emt 00:00:52]} 9. Be2
{[%clk 01:32:32]} {[%emt 00:00:10]} a6 {[%clk 01:31:25]} {[%emt 00:01:59]} 10.
g4 {[%clk 01:29:32]} {[%emt 00:03:29]} h5 {[%clk 01:19:03]} {[%emt 00:12:52]}
11. g5 {[%clk 01:22:20]} {[%emt 00:07:42]} Nfg4 {[%clk 01:10:46]} {[%emt
00:08:47]} 12. Rf1 {[%clk 00:58:51]} {[%emt 00:24:00]} Bd7 {[%clk 00:47:50]}
{[%emt 00:23:26]} 13. h3 {[%clk 00:50:35]} {[%emt 00:08:45]} Ng6 {[%clk
00:47:18]} {[%emt 00:01:01]} 14. Bc1 {[%clk 00:49:29]} {[%emt 00:01:36]} N4e5
{[%clk 00:38:42]} {[%emt 00:09:06]} 15. f4 {[%clk 00:47:16]} {[%emt 00:02:42]}
Nh4 {[%clk 00:35:54]} {[%emt 00:03:18]} 16. Rf2 {[%clk 00:45:40]} {[%emt
00:02:07]} Nc6 {[%clk 00:34:10]} {[%emt 00:02:14]} 17. Bxh5 {[%clk 00:37:05]}
{[%emt 00:09:04]} g6 {[%clk 00:10:49]} {[%emt 00:23:51]} 18. Bg4 {[%clk
00:36:53]} {[%emt 00:00:42]} Rc8 {[%clk 00:07:47]} {[%emt 00:03:32]} 19. Qe2
{[%clk 00:35:32]} {[%emt 00:01:51]} Bg7 {[%clk 00:03:59]} {[%emt 00:04:18]} 20.
Be3 {[%clk 00:34:44]} {[%emt 00:01:18]} Qb4 {[%clk 00:03:47]} {[%emt 00:00:41]}
21. e5 {[%clk 00:15:35]} {[%emt 00:19:39]} Ne7 {[%clk 00:02:39]} {[%emt
00:01:39]} 22. O-O-O {[%clk 00:13:43]} {[%emt 00:02:22]} Nef5 {[%clk 00:02:00]}
{[%emt 00:01:09]} 23. Bd2 {[%clk 00:08:52]} {[%emt 00:05:21]} Qb6 {[%clk
00:01:25]} {[%emt 00:01:05]} 24. Ne4 {[%clk 00:07:32]} {[%emt 00:01:50]} Bb5
{[%clk 00:01:22]} {[%emt 00:00:33]} 25. Qe1 {[%clk 00:07:32]} {[%emt 00:00:30]}
d5 {[%clk 00:00:54]} {[%emt 00:00:58]} 26. Ba5 {[%clk 00:06:51]} {[%emt
00:01:11]} Qc6 {[%clk 00:01:11]} {[%emt 00:00:14]} 27. Nf6+ {[%clk 00:07:01]}
{[%emt 00:00:20]} Bxf6 {[%clk 00:01:36]} {[%emt 00:00:05]} 28. gxf6 {[%clk
00:05:57]} {[%emt 00:01:35]} Ba4 {[%clk 00:01:16]} {[%emt 00:00:50]} 29. Kb1
{[%clk 00:04:56]} {[%emt 00:01:31]} Bxb3 {[%clk 00:01:09]} {[%emt 00:00:37]} 30.
axb3 {[%clk 00:05:17]} {[%emt 00:00:09]} O-O {[%clk 00:01:02]} {[%emt
00:00:37]} 31. Rd3 {[%clk 00:04:40]} {[%emt 00:01:07]} d4 {[%clk 00:00:59]}
{[%emt 00:00:32]} 32. Bxf5 {[%clk 00:03:49]} {[%emt 00:01:21]} Nxf5 {[%clk
00:00:54]} {[%emt 00:00:35]} 33. h4 {[%clk 00:04:17]} {[%emt 00:00:02]} Ne3
{[%clk 00:00:49]} {[%emt 00:00:35]} 34. h5 {[%clk 00:02:51]} {[%emt 00:01:56]}
Qe4 {[%clk 00:00:54]} {[%emt 00:00:25]} 35. hxg6 {[%clk 00:02:07]} {[%emt
00:01:15]} Rxc2 {[%clk 00:00:55]} {[%emt 00:00:29]} 36. Rxe3 {[%clk 00:02:00]}
{[%emt 00:00:37]} dxe3 {[%clk 00:00:45]} {[%emt 00:00:40]} 37. Rxc2 {[%clk
00:01:43]} {[%emt 00:00:47]} Rc8 {[%clk 00:00:44]} {[%emt 00:00:31]} 38. Bc3
{[%clk 00:01:33]} {[%emt 00:00:39]} fxg6 {[%clk 00:00:58]} {[%emt 00:00:17]} 39.
Qd1 {[%clk 00:01:29]} {[%emt 00:00:34]} 1-0

[Event "IV Elllobregat Open Chess Tmnt"]
[Site "Sant Boi de Llobregat, Spain"]
[Date "2023.12.03"]
[Round "4.17"]
[White "Saydaliev, Saidakbar"]
[Black "Puranik, Abhimanyu"]
[Result "1/2-1/2"]
[TimeControl "90min/40moves + 15min/end + 30sec from move 1"]
[WhiteFideId "14203693"]
[BlackFideId "5061245"]
[WhiteElo "2426"]
[BlackElo "2627"]

1. d4 {[%emt 00:10:54]} Nf6 {[%emt 00:00:14]} 2. c4 {[%emt 00:00:12]} c5 {[%emt
00:01:11]} 3. d5 {[%emt 00:00:11]} e6 {[%emt 00:00:04]} 4. Nc3 {[%emt
00:00:14]} exd5 {[%emt 00:00:08]} 5. cxd5 {[%emt 00:00:07]} d6 {[%emt
00:00:03]} 6. Nf3 {[%emt 00:00:22]} g6 {[%emt 00:00:12]} 7. Nd2 {[%emt
00:00:32]} Nbd7 {[%emt 00:07:04]} 8. a4 {[%emt 00:04:56]} Bg7 {[%emt 00:01:09]}
9. Nc4 {[%emt 00:04:05]} Nb6 {[%emt 00:00:45]} 10. Na3 {[%emt 00:00:06]} O-O
{[%emt 00:06:55]} 11. a5 {[%emt 00:04:55]} Nbd7 {[%emt 00:00:08]} 12. Nc4
{[%emt 00:00:06]} Ng4 {[%emt 00:00:41]} 13. Bf4 {[%emt 00:15:57]} Nde5 {[%emt
00:01:35]} 14. e3 {[%emt 00:01:52]} f5 {[%emt 00:02:54]} 15. h3 {[%emt
00:18:55]} Nxc4 {[%emt 00:09:24]} 16. Bxc4 {[%emt 00:02:58]} Ne5 {[%emt
00:00:06]} 17. Be2 {[%emt 00:01:50]} Qe7 {[%emt 00:03:20]} 18. O-O {[%emt
00:01:26]} g5 {[%emt 00:00:28]} 19. Bxe5 {[%emt 00:00:46]} Qxe5 {[%emt
00:00:04]} 20. a6 {[%emt 00:02:36]} Rb8 {[%emt 00:03:06]} 21. Nb5 {[%emt
00:05:50]} bxa6 {[%emt 00:00:36]} 22. Nxa7 {[%emt 00:00:05]} Rxb2 {[%emt
00:04:09]} 23. Nxc8 {[%emt 00:02:22]} Rxc8 {[%emt 00:00:15]} 24. Rxa6 {[%emt
00:00:22]} f4 {[%emt 00:15:32]} 25. Bg4 {[%emt 00:05:26]} Rf8 {[%emt 00:00:41]}
26. e4 {[%emt 00:05:23]} Qxe4 {[%emt 00:12:57]} 27. Rxd6 {[%emt 00:00:34]} Bd4
{[%emt 00:05:49]} 28. Bf3 {[%emt 00:00:48]} Qe8 {[%emt 00:00:04]} 29. Qd3
{[%emt 00:03:06]} Rxf2 {[%emt 00:00:50]} 30. Kh2 {[%emt 00:01:55]} Qe3 {[%emt
00:01:31]} 31. Qd1 {[%emt 00:01:15]} Rxf1 {[%emt 00:04:29]} 32. Qxf1 {[%emt
00:00:01]} Re8 {[%emt 00:00:53]} 33. Rd7 {[%emt 00:03:42]} Qb3 {[%emt
00:03:02]} 34. Rc7 {[%emt 00:03:57]} Qb6 {[%emt 00:09:52]} 35. d6 {[%emt
00:01:51]} Qxd6 {[%emt 00:00:59]} 36. Qc4+ Kh8 {[%emt 00:00:06]} 37. Rxh7+
{[%emt 00:00:03]} Kxh7 {[%emt 00:00:03]} 38. Qf7+ Kh6 {[%emt 00:00:11]} 39.
Qxe8 {[%emt 00:00:05]} Kg7 {[%emt 00:00:45]} 40. Qh5 {[%emt 00:03:52]} Bf6
{[%emt 00:05:59]} 41. Qg4 {[%emt 00:03:49]} Kf8 {[%emt 00:01:17]} 42. Qc8+
{[%emt 00:00:50]} Ke7 {[%emt 00:00:52]} 43. Qb7+ {[%emt 00:00:29]} Kf8 {[%emt
00:01:13]} 44. Qc8+ {[%emt 00:00:26]} Bd8 {[%emt 00:00:18]} 45. Qf5+ {[%emt
00:00:14]} Kg7 {[%emt 00:00:06]} 46. Qd5 {[%emt 00:03:40]} Qf8 {[%emt
00:05:30]} 47. Qe5+ {[%emt 00:02:22]} Bf6 {[%emt 00:00:06]} 48. Qc7+ {[%emt
00:00:03]} Be7 {[%emt 00:00:14]} 49. Qe5+ {[%emt 00:00:05]} Kh6 {[%emt
00:00:27]} 50. Qe6+ {[%emt 00:00:34]} Bf6 {[%emt 00:00:05]} 51. Be4 {[%emt
00:00:22]} f3 {[%emt 00:02:43]} 52. gxf3 {[%emt 00:01:14]} Qe7 {[%emt
00:02:22]} 1/2-1/2